bitfinex/quotes_SOLUSD_20251125
["timestamp","ask_amount","ask_price","bid_price","bid_amount"]
[1764098390802,10.18442941,134.8,134.74,0.71]
[1764098391015,10.18442941,134.8,134.64,111.78140494]
[1764098391016,9.41994492,134.79,134.71,0.71]
[1764098391202,9.41994492,134.79,134.67,7.42555877]
[1764098391203,6.86442941,134.76,134.67,7.42555877]
[1764098391380,10.18442941,134.75,134.69,7.57442941]
[1764098391586,3.32,134.75,134.7,6.86442941]
[1764098391896,15.67437433,134.74,134.68,0.71]
[1764098392096,6.86442941,134.71,134.66,0.71]
[1764098392313,10.18442941,134.7,134.64,3.62697554]
[1764098392484,10.18442941,134.7,134.64,2.91697554]
[1764098392681,3.32,134.7,134.64,10.49140495]
[1764098393078,10.18442941,134.7,134.64,3.62697554]
[1764098393279,10.18442941,134.7,134.65,0.72]
[1764098393481,8.80994492,134.74,134.67,6.86442941]
[1764098393709,6.86442941,134.72,134.66,6.86442941]
[1764098393912,6.86442941,134.72,134.66,7.58442941]
[1764098394087,6.86442941,134.71,134.66,0.72]
[1764098395012,14.28782449,134.71,134.66,8.14588389]
[1764098395178,7.42115027,134.75,134.69,6.86442941]
[1764098395386,3.32,134.74,134.7,6.86442941]
[1764098395689,3.32,134.74,134.71,6.86442941]
[1764098395889,7.4202244,134.77,134.71,6.86442941]
[1764098396217,3.34,134.76,134.72,0.72]
[1764098396706,3.34,134.76,134.72,7.58442941]
[1764098397015,3.32,134.75,134.72,15.00684095]
[1764098397609,10.74146596,134.75,134.7,15.00828949]
[1764098397783,17.60589537,134.75,134.69,6.86442941]
[1764098397990,17.60589537,134.75,134.65,182.508864]
[1764098397991,6.86442941,134.71,134.65,14.29095969]
[1764098398183,10.20442941,134.7,134.65,8.14653028]
[1764098398404,3.34,134.7,134.65,8.14653028]
[1764098398582,10.20442941,134.7,134.65,8.14653028]
[1764098398786,3.34,134.7,134.66,0.72]
[1764098399107,3.34,134.7,134.66,8.14610517]
[1764098399407,3.34,134.7,134.66,0.72]
[1764098399608,6.86442941,134.68,134.64,2.91697554]
[1764098399792,6.86442941,134.69,134.64,2.91697554]
[1764098399996,3.34,134.7,134.65,7.55442941]
[1764098400198,3.34,134.7,134.66,6.86442941]
[1764098400400,3.34,134.7,134.66,7.55442941]
[1764098400613,17.6284369,134.7,134.64,10.47140495]
[1764098400808,3.34,134.7,134.64,10.34413387]
[1764098401007,3.34,134.69,134.68,6.86442941]
[1764098401217,3.34,134.69,134.66,6.86442941]
[1764098401511,7.42320564,134.72,134.67,6.86442941]
[1764098401688,3.34,134.71,134.67,6.86442941]
[1764098401884,8.11648547,134.77,134.68,0.69]
[1764098402084,6.86442941,134.73,134.68,0.69]
[1764098402336,3.34,134.72,134.68,7.55442941]
[1764098402709,3.34,134.72,134.7,6.86442941]
[1764098403026,15.67437433,134.8,134.71,32.84582796]
[1764098403230,6.86442941,134.75,134.69,0.69]
[1764098403403,6.86442941,134.75,134.69,7.55442941]
[1764098403404,3.34,134.74,134.69,7.55442941]
[1764098403723,3.34,134.74,134.7,0.69]
[1764098403894,3.34,134.74,134.7,7.55442941]
[1764098404493,3.34,134.74,134.71,0.69]
[1764098405094,10.7622107,134.74,134.71,0.69]
[1764098405818,3.34,134.74,134.73,6.86442941]
[1764098406019,3.34,134.74,134.71,0.69]
[1764098406901,3.34,134.74,134.69,6.86442941]
[1764098407097,3.34,134.74,134.7,0.69]
[1764098407296,3.34,134.74,134.72,6.86442941]
[1764098407502,10.7617519,134.74,134.7,0.69]
[1764098407707,10.7617519,134.74,134.71,0.69]
[1764098407910,3.34,134.74,134.72,6.86442941]
[1764098408601,10.76184951,134.74,134.69,7.55442941]
[1764098408921,18.23627892,134.74,134.69,0.69]
[1764098409107,36.79053155,134.74,134.69,0.69]
[1764098409305,6.86442941,134.73,134.65,7.42644838]
[1764098409508,7.47442941,134.73,134.67,6.86442941]
[1764098409705,6.86442941,134.73,134.66,0.69]
[1764098410101,6.86442941,134.72,134.66,0.69]
[1764098410307,6.86442941,134.71,134.66,0.69]
[1764098410498,3.34,134.7,134.66,0.69]
[1764098410921,3.34,134.7,134.66,7.55442941]
[1764098411622,7.42445615,134.69,134.64,2.91697554]
[1764098411832,6.86442941,134.68,134.64,2.91697554]
[1764098412130,7.47442941,134.68,134.64,2.91697554]
[1764098412498,8.80994492,134.68,134.64,2.91697554]
[1764098412701,15.67437433,134.68,134.64,2.91697554]
[1764098413110,0.61,134.67,134.64,2.91697554]
[1764098413317,10.20442941,134.66,134.64,2.91697554]
[1764098413506,14.29109112,134.65,134.64,2.91697554]
[1764098413717,7.42666171,134.65,134.64,2.91697554]
[1764098414231,10.76626944,134.66,134.64,2.91697554]
[1764098414540,8.80994492,134.65,134.64,2.91697554]
[1764098415112,20.22815869,134.65,134.64,2.91697554]
[1764098415322,20.22815869,134.65,134.53,0.1]
[1764098415323,36.53702269,134.65,134.53,0.1]
[1764098415521,36.53702269,134.65,134.57,10.80821377]
[1764098415522,10.80821377,134.63,134.57,10.80821377]
[1764098415730,3.34,134.62,134.57,10.80821377]
[1764098416042,14.14821377,134.62,134.56,10.80821377]
[1764098416218,14.14821377,134.62,134.53,0.1]
[1764098416219,8.80994492,134.61,134.53,0.1]
[1764098416422,10.80821377,134.6,134.54,10.80821377]
[1764098416732,3.34,134.62,134.57,10.80821377]
[1764098416931,3.34,134.62,134.53,26.11645316]
[1764098417238,3.34,134.62,134.53,26.80645316]
[1764098417438,3.34,134.62,134.58,10.80821377]
[1764098417638,3.34,134.62,134.59,10.80821377]
[1764098417950,3.34,134.62,134.6,10.80821377]
[1764098418752,3.34,134.62,134.59,10.80821377]
[1764098418916,3.34,134.62,134.58,10.80821377]
[1764098419119,3.34,134.62,134.57,18.2391822]
[1764098419352,3.34,134.62,134.57,10.80821377]
[1764098419654,18.23708235,134.61,134.55,18.24039511]
[1764098420017,7.42886858,134.61,134.56,10.80821377]
[1764098420324,7.42886858,134.61,134.55,10.80821377]
[1764098420526,18.23708235,134.61,134.55,10.80821377]
[1764098420722,21.57673722,134.62,134.56,10.80821377]
[1764098420922,10.76852345,134.62,134.54,26.01445839]
[1764098421135,10.76852345,134.62,134.57,10.80821377]
[1764098421526,10.76852345,134.62,134.58,10.80821377]
[1764098421849,10.80821377,134.6,134.53,0.1]
[1764098422050,8.80994492,134.61,134.53,7.53319944]
[1764098422257,10.80821377,134.6,134.54,10.80821377]
[1764098422942,8.80994492,134.61,134.55,10.80821377]
[1764098423115,8.80994492,134.61,134.56,10.80821377]
[1764098423311,19.61815869,134.61,134.53,26.11646584]
[1764098423516,8.80994492,134.61,134.55,10.80821377]
[1764098423741,7.4294205,134.6,134.55,18.23997589]
[1764098424051,59.46285753,134.68,134.58,10.80821377]
[1764098424218,10.80821377,134.65,134.59,10.80821377]
[1764098424418,3.34,134.64,134.59,10.80821377]
[1764098424724,3.34,134.63,134.59,10.80821377]
[1764098425030,18.56558469,134.66,134.59,10.80821377]
[1764098425238,22.95815869,134.65,134.55,26.71221548]
[1764098425552,22.95815869,134.65,134.58,10.80821377]
[1764098425763,10.80821377,134.62,134.56,10.80821377]
[1764098425919,3.34,134.61,134.56,10.80821377]
[1764098426424,3.34,134.61,134.58,10.80821377]
[1764098427844,10.76892375,134.61,134.57,18.23929053]
[1764098428017,3.34,134.61,134.57,18.23929053]
[1764098428644,3.34,134.61,134.59,10.80821377]
[1764098429233,3.34,134.61,134.58,11.50821377]
[1764098429656,3.34,134.61,134.59,7.4299725]
[1764098429833,3.34,134.61,134.58,7.43032266]
[1764098430837,3.34,134.61,134.57,7.43084429]
[1764098431044,3.34,134.61,134.56,8.13143521]
[1764098431360,3.34,134.61,134.57,0.7]
[1764098431852,3.34,134.61,134.58,7.43052459]
[1764098432232,3.34,134.61,134.58,8.13052459]
[1764098432433,3.34,134.61,134.57,7.43107662]
[1764098432627,3.34,134.61,134.57,8.13107662]
[1764098433248,3.34,134.61,134.58,0.7]
[1764098433659,3.34,134.61,134.59,7.4299725]
[1764098433848,3.34,134.61,134.57,7.43084197]
[1764098434632,10.76889473,134.61,134.57,7.43084197]
[1764098434965,3.34,134.61,134.57,7.43084197]
[1764098435460,3.34,134.61,134.57,8.13084197]
[1764098435831,27.37559118,134.66,134.58,0.7]
[1764098436062,14.14821377,134.65,134.58,11.50821377]
[1764098436646,14.14821377,134.65,134.57,26.00853387]
[1764098436647,10.80821377,134.63,134.57,26.00853387]
[1764098436850,19.61815869,134.64,134.57,26.00853387]
[1764098437370,10.80821377,134.62,134.56,7.43155051]
[1764098437675,3.34,134.61,134.56,26.01062304]
[1764098438046,3.34,134.61,134.58,10.80821377]
[1764098438243,3.34,134.61,134.59,0.7]
[1764098439552,10.80821377,134.66,134.59,11.50821377]
[1764098439901,10.80821377,134.69,134.62,10.80821377]
[1764098440160,3.34,134.68,134.62,10.80821377]
[1764098440335,14.14821377,134.68,134.63,0.7]
[1764098440533,14.84821377,134.68,134.61,26.70104003]
[1764098440759,14.84821377,134.68,134.62,0.7]
[1764098440940,4.04,134.68,134.62,0.7]
[1764098441368,3.34,134.68,134.63,10.80821377]
[1764098441577,3.34,134.68,134.64,10.80821377]
[1764098441863,3.34,134.68,134.66,18.23432397]
[1764098442158,18.55218925,134.76,134.67,10.80821377]
[1764098442159,3.34,134.71,134.67,10.80821377]
[1764098442334,3.34,134.74,134.69,10.80821377]
[1764098442764,3.34,134.74,134.7,0.7]
[1764098443149,3.34,134.74,134.7,11.50821377]
[1764098443352,3.34,134.74,134.7,0.7]
[1764098443554,4.04,134.74,134.66,63.12193671]
[1764098443773,22.27011775,134.74,134.68,7.42500742]
[1764098444268,22.27011775,134.74,134.68,0.7]
[1764098444471,21.57011775,134.74,134.68,0.7]
[1764098444666,22.27011775,134.74,134.68,0.7]
[1764098444873,10.80821377,134.73,134.68,0.7]
[1764098445280,11.50821377,134.73,134.68,0.7]
[1764098445582,40.12437038,134.74,134.68,0.7]
[1764098445788,10.76190398,134.74,134.69,7.42445615]
[1764098445993,0.7,134.73,134.68,8.12478864]
[1764098446982,0.7,134.72,134.68,7.42478864]
[1764098447281,4.04,134.74,134.68,8.12478864]
[1764098447460,10.80821377,134.73,134.68,8.12478864]
[1764098447662,11.50821377,134.73,134.68,8.12478864]
[1764098447862,0.7,134.72,134.68,8.12478864]
[1764098449161,18.23087007,134.73,134.68,8.12478864]
[1764098449356,11.50821377,134.72,134.66,0.7]
[1764098449584,11.50821377,134.72,134.65,18.56586482]
[1764098449585,10.80821377,134.71,134.65,18.56586482]
[1764098449891,3.34,134.7,134.65,19.26586482]
[1764098450085,3.34,134.7,134.66,0.7]
[1764098450298,11.50821377,134.69,134.63,0.7]
[1764098450461,10.80821377,134.67,134.59,10.80821377]
[1764098450666,14.14821377,134.66,134.61,0.7]
[1764098450878,21.57436332,134.66,134.62,7.42831674]
[1764098451190,14.84821377,134.66,134.62,7.42831674]
[1764098451394,4.04,134.66,134.62,26.69910859]
[1764098451587,3.34,134.66,134.62,26.69910859]
[1764098452678,3.34,134.66,134.63,0.7]
[1764098453202,3.34,134.66,134.63,8.12741207]
[1764098453990,3.34,134.66,134.63,7.42741207]
[1764098454373,3.34,134.66,134.63,8.14741207]
[1764098454774,3.34,134.65,134.63,8.14741207]
[1764098455692,3.34,134.65,134.64,0.72]
[1764098455999,10.80821377,134.7,134.64,0.72]
[1764098456201,3.34,134.69,134.64,0.72]
[1764098456799,18.23147452,134.72,134.64,11.52821377]
[1764098456969,3.34,134.71,134.64,11.52821377]
[1764098457174,3.34,134.71,134.66,25.9913857]
[1764098457373,21.5716616,134.71,134.66,25.9913857]
[1764098457594,11.43344783,134.71,134.67,0.72]
[1764098457898,11.43344783,134.71,134.66,25.9913857]
[1764098457899,0.67,134.7,134.66,7.4261102]
[1764098458102,10.80821377,134.67,134.61,0.72]
[1764098458293,3.34,134.66,134.61,0.72]
[1764098458799,14.81821377,134.66,134.61,0.72]
[1764098459184,21.57448423,134.66,134.62,7.42831674]
[1764098459387,0.67,134.65,134.61,0.72]
[1764098459818,3.34,134.64,134.61,26.72083562]
[1764098460096,3.34,134.63,134.59,18.57451164]
[1764098460272,3.34,134.63,134.6,8.1194205]
[1764098460477,3.34,134.63,134.6,26.69297176]
[1764098460783,0.72,134.66,134.61,0.69]
[1764098461097,3.34,134.63,134.61,0.69]
[1764098461402,3.34,134.63,134.62,7.42831674]
[1764098461603,0.72,134.68,134.62,25.99910859]
[1764098461906,3.34,134.67,134.62,26.68910859]
[1764098462084,14.14821377,134.67,134.62,26.68910859]
[1764098462291,14.14821377,134.67,134.62,8.11831674]
[1764098462479,0.72,134.66,134.62,8.11831674]
[1764098463292,21.57402235,134.67,134.62,8.11831674]
[1764098463488,22.29402235,134.67,134.62,8.11831674]
[1764098463784,11.4855683,134.67,134.62,7.42831674]
[1764098463984,11.4855683,134.67,134.62,8.11831674]
[1764098464181,22.29378207,134.67,134.62,8.11831674]
[1764098464788,4.06,134.67,134.63,0.69]
[1764098465306,11.48557403,134.67,134.63,8.11726094]
[1764098465505,22.2937878,134.67,134.63,8.11726094]
[1764098466005,4.06,134.67,134.63,8.11726094]
[1764098466310,3.34,134.67,134.63,25.9966734]
[1764098466606,3.32,134.67,134.64,0.69]
[1764098466979,14.12821377,134.67,134.6,11.49821377]
[1764098467181,10.80821377,134.65,134.6,0.69]
[1764098467377,0.72,134.66,134.61,26.00104003]
[1764098467592,8.14611149,134.66,134.61,26.00104003]
[1764098467901,14.12821377,134.67,134.62,0.69]
[1764098468091,10.80821377,134.66,134.62,0.69]
[1764098468289,11.52821377,134.66,134.62,0.69]
[1764098468605,0.72,134.66,134.62,0.69]
[1764098468807,11.52821377,134.66,134.62,0.69]
[1764098469397,10.80821377,134.65,134.62,0.69]
[1764098469933,18.95483422,134.66,134.62,8.11829927]
[1764098470113,11.52821377,134.65,134.61,7.42873143]
[1764098470406,11.52821377,134.65,134.59,0.69]
[1764098470609,0.72,134.64,134.59,26.69479835]
[1764098470906,3.32,134.63,134.59,26.69479835]
[1764098471115,3.32,134.63,134.6,0.69]
[1764098471619,0.72,134.68,134.61,36.8092538]
[1764098471906,3.32,134.66,134.61,36.8092538]
[1764098472205,3.32,134.66,134.62,0.69]
[1764098473805,3.32,134.66,134.63,7.42776498]
[1764098474001,0.72,134.71,134.64,10.80821377]
[1764098474202,2.19999999,134.79,134.67,10.80821377]
[1764098474203,0.72,134.73,134.67,10.80821377]
[1764098474397,7.41949844,134.78,134.69,10.80821377]
[1764098474727,0.72,134.76,134.69,10.80821377]
[1764098475012,10.80821377,134.73,134.68,0.69]
[1764098475309,3.32,134.72,134.68,0.69]
[1764098476312,10.74287904,134.72,134.64,38.19620969]
[1764098476494,10.80821377,134.69,134.63,0.69]
[1764098476685,6.8946174,134.67,134.63,0.69]
[1764098477083,3.32,134.68,134.63,0.69]
[1764098477306,4.04,134.68,134.63,0.69]
[1764098477503,3.32,134.68,134.6,6.8946174]
[1764098477706,7.6146174,134.67,134.61,0.69]
[1764098478013,0.72,134.69,134.61,0.69]
[1764098478198,3.32,134.66,134.61,7.5846174]
[1764098478397,3.32,134.66,134.62,25.99910859]
[1764098478600,3.32,134.66,134.63,0.69]
[1764098479110,3.32,134.67,134.63,0.69]
[1764098480016,8.14469325,134.69,134.63,0.69]
[1764098480210,3.32,134.67,134.63,0.69]
[1764098480413,3.32,134.67,134.64,7.4272133]
[1764098480806,3.32,134.67,134.65,0.69]
[1764098481001,6.8946174,134.69,134.64,25.99524657]
[1764098481316,10.2146174,134.67,134.6,6.8946174]
[1764098481512,10.2146174,134.67,134.64,0.69]
[1764098481706,3.32,134.67,134.64,0.69]
[1764098482232,3.32,134.67,134.61,18.57158135]
[1764098482397,6.8946174,134.64,134.6,7.4294205]
[1764098482596,6.8946174,134.64,134.59,0.69]
[1764098482597,6.8946174,134.63,134.59,0.69]
[1764098482792,7.6146174,134.63,134.59,0.69]
[1764098483010,0.72,134.63,134.59,0.69]
[1764098483207,3.32,134.62,134.59,0.69]
[1764098483396,3.32,134.62,134.59,8.11982137]
[1764098483608,10.2146174,134.62,134.58,7.43028555]
[1764098483823,10.2146174,134.62,134.54,7.43273375]
[1764098484013,0.72,134.61,134.55,19.25965001]
[1764098484216,7.6146174,134.61,134.55,19.25965001]
[1764098484400,7.6146174,134.61,134.56,0.68]
[1764098484719,15.04365153,134.61,134.57,7.43107676]
[1764098485117,3.32,134.6,134.57,8.11107676]
[1764098485422,3.32,134.6,134.58,0.68]
[1764098485624,3.32,134.61,134.58,0.68]
[1764098486095,14.32239573,134.63,134.58,0.68]
[1764098486421,3.32,134.62,134.58,0.68]
[1764098486619,3.32,134.62,134.59,7.4299725]
[1764098487018,3.32,134.62,134.58,7.43035336]
[1764098487219,10.2146174,134.62,134.58,8.11035336]
[1764098487402,17.64305648,134.62,134.58,8.11035336]
[1764098487600,6.8946174,134.61,134.58,8.11035336]
[1764098487807,7.6146174,134.61,134.58,7.43035336]
[1764098487994,10.74843908,134.62,134.58,8.11035336]
[1764098488199,6.8946174,134.61,134.58,8.11035336]
[1764098488411,6.8946174,134.61,134.58,7.43035336]
[1764098488622,10.74849821,134.62,134.57,8.11107676]
[1764098488823,6.8946174,134.61,134.57,8.11107676]
[1764098489018,11.46849821,134.62,134.58,0.68]
[1764098489217,10.2146174,134.62,134.58,0.68]
[1764098489721,18.36295193,134.62,134.58,0.68]
[1764098489936,6.8946174,134.61,134.57,7.43107676]
[1764098490141,7.6146174,134.64,134.59,0.68]
[1764098490308,3.32,134.63,134.59,0.68]
[1764098490618,3.32,134.62,134.59,0.68]
[1764098490804,3.32,134.62,134.6,7.4294205]
[1764098491140,6.8946174,134.67,134.6,32.89758916]
[1764098491340,3.32,134.66,134.61,0.68]
[1764098491505,6.8946174,134.69,134.61,7.5746174]
[1764098491833,3.32,134.68,134.62,6.8946174]
[1764098492123,3.32,134.68,134.62,7.5746174]
[1764098492327,3.32,134.68,134.63,0.68]
[1764098492702,10.2146174,134.68,134.64,7.4272133]
[1764098492910,6.8946174,134.65,134.6,0.68]
[1764098493112,10.2146174,134.64,134.6,0.68]
[1764098493326,3.32,134.64,134.6,0.68]
[1764098493630,10.2146174,134.64,134.6,0.68]
[1764098493813,10.9346174,134.64,134.6,0.68]
[1764098494012,4.04,134.64,134.6,8.10918121]
[1764098494324,6.8946174,134.63,134.58,8.11049428]
[1764098494524,10.9346174,134.64,134.58,7.43049428]
[1764098494734,10.9346174,134.64,134.58,26.68680576]
[1764098495134,6.8946174,134.63,134.58,26.68680576]
[1764098495333,6.8946174,134.63,134.55,16.308864]
[1764098495334,6.8946174,134.59,134.55,16.308864]
[1764098495549,0.72,134.63,134.53,0.1]
[1764098495550,6.8946174,134.56,134.53,0.1]
[1764098495833,3.32,134.58,134.53,0.1]
[1764098495834,6.8946174,134.54,134.53,0.1]
[1764098496024,8.80994492,134.56,134.53,0.1]
[1764098496244,6.8946174,134.54,134.53,0.1]
[1764098496621,12.12994492,134.58,134.53,0.1]
[1764098496824,0.72,134.56,134.53,0.1]
[1764098497648,12.84994492,134.58,134.53,0.1]
[1764098497953,6.8946174,134.55,134.53,0.1]
[1764098498741,10.2146174,134.55,134.53,0.1]
[1764098498938,3.32,134.55,134.53,0.78]
[1764098500024,3.32,134.59,134.54,6.8946174]
[1764098500452,3.32,134.59,134.55,0.68]
[1764098500859,3.32,134.59,134.56,7.43162901]
[1764098501037,10.9346174,134.59,134.53,19.36280295]
[1764098501223,6.8946174,134.57,134.54,7.43273375]
[1764098501658,6.8946174,134.56,134.53,7.53311955]
[1764098501958,6.8946174,134.55,134.53,0.1]
[1764098502143,0.72,134.56,134.53,7.53323551]
[1764098502346,6.8946174,134.57,134.53,8.21323551]
[1764098502730,0.72,134.56,134.53,0.1]
[1764098502958,6.8946174,134.54,134.53,0.1]
[1764098503124,6.8946174,134.55,134.53,0.1]
[1764098504027,6.8946174,134.56,134.53,0.78]
[1764098504230,10.2146174,134.55,134.53,0.1]
[1764098505363,10.9346174,134.55,134.53,0.1]
[1764098505651,6.8946174,134.54,134.53,0.1]
[1764098505853,10.9346174,134.55,134.53,0.1]
[1764098506028,6.8946174,134.55,134.53,0.1]
[1764098506237,3.32,134.54,134.53,0.1]
[1764098506929,6.8946174,134.57,134.54,7.43273375]
[1764098507133,3.32,134.56,134.54,7.43273375]
[1764098507530,6.8946174,134.55,134.53,0.1]
[1764098507854,3.32,134.55,134.53,8.21312817]
[1764098508226,7.42944277,134.6,134.53,26.1163438]
[1764098508454,8.15128094,134.7,134.56,6.8946174]
[1764098508455,37.12166201,134.7,134.56,6.8946174]
[1764098508660,6.8946174,134.62,134.57,7.5746174]
[1764098508825,3.34,134.61,134.57,7.5746174]
[1764098509032,3.34,134.61,134.58,26.68683607]
[1764098509525,0.72,134.6,134.53,16.408864]
[1764098509729,6.8946174,134.59,134.54,0.68]
[1764098510151,7.6146174,134.6,134.54,7.5746174]
[1764098510348,10.2346174,134.61,134.55,6.8946174]
[1764098510554,10.2346174,134.61,134.55,7.5746174]
[1764098510936,10.2346174,134.61,134.57,7.43107676]
[1764098511143,3.34,134.6,134.57,7.43107676]
[1764098511359,3.34,134.6,134.57,8.11107676]
[1764098511540,3.34,134.6,134.57,26.68876866]
[1764098511857,10.2346174,134.6,134.57,26.00876866]
[1764098512056,0.72,134.62,134.57,26.00876866]
[1764098512260,10.9346174,134.61,134.57,7.43107676]
[1764098512552,10.9346174,134.61,134.57,8.11107676]
[1764098512752,1.99999999,134.61,134.56,6.8946174]
[1764098512956,3.32,134.62,134.58,6.8946174]
[1764098513153,5.33999999,134.65,134.56,6.8946174]
[1764098513343,5.33999999,134.65,134.6,6.8946174]
[1764098513536,3.34,134.65,134.6,6.8946174]
[1764098513964,1.99999999,134.64,134.6,6.8946174]
[1764098514127,3.34,134.65,134.6,6.8946174]
[1764098514336,3.34,134.65,134.61,32.89565743]
[1764098515032,1.99999999,134.67,134.62,6.8946174]
[1764098515232,8.89461739,134.7,134.64,6.8946174]
[1764098515470,5.31999999,134.69,134.65,6.8946174]
[1764098515834,3.32,134.69,134.65,6.8946174]
[1764098516134,8.89461739,134.71,134.67,6.8946174]
[1764098516135,1.99999999,134.71,134.67,6.8946174]
[1764098516352,5.31999999,134.71,134.68,7.42500742]
[1764098516756,1.99999999,134.69,134.68,7.42500742]
[1764098516949,1.99999999,134.69,134.66,7.4261102]
[1764098517148,1.99999999,134.71,134.66,32.8860031]
[1764098517340,1.99999999,134.73,134.68,6.8946174]
[1764098517541,3.32,134.72,134.68,6.8946174]
[1764098518161,1.99999999,134.68,134.63,7.42776498]
[1764098518348,10.2146174,134.67,134.62,7.42831674]
[1764098518535,8.89461739,134.66,134.62,7.42831674]
[1764098518731,6.8946174,134.66,134.62,7.42831674]
[1764098518945,8.89461739,134.66,134.62,7.42831674]
[1764098519263,8.89461739,134.66,134.6,6.8946174]
[1764098520351,6.8946174,134.63,134.58,6.8946174]
[1764098520661,3.34,134.62,134.58,32.90145347]
[1764098520836,1.99999999,134.64,134.6,6.8946174]
[1764098520837,5.33999999,134.64,134.6,6.8946174]
[1764098521038,3.34,134.64,134.6,6.8946174]
[1764098521247,12.23461739,134.66,134.6,6.8946174]
[1764098521444,6.8946174,134.64,134.58,26.00683607]
[1764098521640,6.8946174,134.63,134.58,32.90145347]
[1764098522366,6.8946174,134.65,134.59,6.8946174]
[1764098522570,1.99999999,134.64,134.61,7.42886858]
[1764098522767,2.66999999,134.66,134.6,7.42920353]
[1764098522948,6.8946174,134.61,134.56,7.43162901]
[1764098523350,1.99999999,134.62,134.56,32.90475229]
[1764098523552,3.32,134.64,134.59,6.8946174]
[1764098524066,1.99999999,134.67,134.6,0.68]
[1764098524241,12.21461739,134.66,134.6,6.8946174]
[1764098524441,6.8946174,134.65,134.6,7.4294205]
[1764098524660,8.89461739,134.64,134.6,7.4294205]
[1764098524862,8.89461739,134.64,134.6,26.00297176]
[1764098525063,1.99999999,134.65,134.6,32.89758916]
[1764098525270,1.99999999,134.67,134.63,6.8946174]
[1764098525476,1.99999999,134.67,134.58,16.308864]
[1764098525654,1.99999999,134.67,134.63,6.8946174]
[1764098526186,3.34,134.68,134.64,6.8946174]
[1764098526570,3.34,134.68,134.65,6.8946174]
[1764098527266,1.99999999,134.72,134.67,6.8946174]
[1764098527449,5.33999999,134.71,134.68,6.8946174]
[1764098527652,5.33999999,134.71,134.67,6.8946174]
[1764098527653,3.34,134.71,134.67,6.8946174]
[1764098528152,3.34,134.71,134.69,6.8946174]
[1764098528570,3.34,134.71,134.7,7.42390497]
[1764098529382,1.99999999,134.72,134.7,7.42390497]
[1764098529546,1.99999999,134.74,134.71,6.8946174]
[1764098529754,1.99999999,134.74,134.72,6.8946174]
[1764098529990,5.33999999,134.76,134.72,6.8946174]
[1764098530382,1.99999999,134.74,134.72,6.8946174]
[1764098530582,3.34,134.76,134.74,7.42170105]
[1764098530799,5.33999999,134.76,134.72,14.31688032]
[1764098531279,3.34,134.76,134.72,32.87388744]
[1764098531590,5.33999999,134.76,134.72,32.87388744]
[1764098532268,5.33999999,134.76,134.72,25.97927004]
[1764098532498,2.66999999,134.75,134.72,7.42226292]
[1764098532653,9.56461739,134.75,134.7,25.98296707]
[1764098532853,1.99999999,134.72,134.7,7.42390497]
[1764098533050,12.23461739,134.71,134.62,0.36912475]
[1764098533297,1.99999999,134.69,134.62,14.32292399]
[1764098533497,1.99999999,134.68,134.63,6.8946174]
[1764098533657,8.89461739,134.69,134.63,6.8946174]
[1764098534369,8.89461739,134.69,134.64,6.8946174]
[1764098534370,1.99999999,134.69,134.64,6.8946174]
[1764098534683,5.33999999,134.69,134.65,25.99331599]
[1764098534986,1.99999999,134.67,134.65,25.99331599]
[1764098535177,1.99999999,134.68,134.65,25.99331599]
[1764098535489,5.33999999,134.69,134.65,25.99331599]
[1764098535980,1.99999999,134.67,134.65,25.99331599]
[1764098536154,5.33999999,134.69,134.65,25.99331599]
[1764098537152,5.33999999,134.69,134.63,6.8946174]
[1764098537579,10.2146174,134.69,134.63,6.8946174]
[1764098537775,12.21461739,134.69,134.63,6.8946174]
[1764098537962,12.21461739,134.69,134.64,6.8946174]
[1764098537963,1.99999999,134.68,134.64,6.8946174]
[1764098538166,5.31999999,134.69,134.64,6.8946174]
[1764098538569,5.31999999,134.69,134.62,63.1406923]
[1764098538570,3.32,134.69,134.65,10.79955232]
[1764098539486,10.79955232,134.66,134.61,0.36984186]
[1764098539660,1.99999999,134.61,134.54,44.59640254]
[1764098539856,3.34,134.63,134.6,10.79955232]